lending/lending_fUSD_20250819
["ID","MTS","AMOUNT","RATE_DAILY","PERIOD"]
[380292451,1755639031586,-3000.0,0.000106,3]
[380292452,1755639031596,-600.0,0.000107,3]
[380292453,1755639031605,-300.0,0.00010799,2]
[380292454,1755639031615,-300.0,0.00010799,2]
[380292455,1755639031624,-300.0,0.00010799,2]
[380292456,1755639031633,-600.0,0.000108,3]
[380292457,1755639031642,-150.0,0.00010897,2]
[380292458,1755639031652,-97379.80402006,0.00010898,2]
[380292459,1755639031663,-600.0,0.000109,3]
[380292460,1755639031672,-202.07121221,0.000109,2]
[380292461,1755639031681,-328.76208947,0.00010913,2]
[380292462,1755639031691,-518.91744626,0.00010917,2]
[380292463,1755639031701,-328.76208947,0.00010921,2]
[380292464,1755639031710,-2580.49366496,0.0001093,2]
[380292465,1755639031719,-2580.49366496,0.00010936,2]
[380292466,1755639031729,-328.76208947,0.00010937,2]
[380292467,1755639031739,-2580.49366496,0.00010944,2]
[380292468,1755639031748,-328.76208947,0.00010949,2]
[380292469,1755639031758,-2580.49366496,0.00010956,2]
[380292470,1755639031768,-518.91744626,0.00010957,2]
[380292471,1755639031778,-328.76208947,0.00010962,2]
[380292472,1755639031787,-518.91744626,0.00010965,2]
[380292473,1755639031797,-518.91744626,0.0001097,2]
[380292474,1755639031806,-518.91744626,0.00010976,2]
[380292475,1755639031816,-518.91744626,0.00010977,2]
[380292476,1755639031826,-328.76208947,0.0001098,2]
[380292477,1755639031835,-518.91744626,0.00010981,2]
[380292478,1755639031844,-2580.49366496,0.00010983,2]
[380292480,1755639031854,-2580.49366496,0.00010984,2]
[380292482,1755639031863,-2580.49366496,0.00010984,2]
[380292484,1755639031873,-328.76208947,0.00010996,2]
[380292486,1755639031883,-150.0,0.00010999,2]
[380292488,1755639031892,-150.0,0.00010999,2]
[380292489,1755639031901,-150.0,0.00010999,2]
[380292490,1755639031913,-150.0,0.00010999,2]
[380292491,1755639031923,-150.0,0.00010999,2]
[380292492,1755639031932,-150.0,0.00010999,2]
[380292493,1755639031942,-150.0,0.00010999,2]
[380292494,1755639031951,-150.0,0.00010999,2]
[380292495,1755639031961,-150.0,0.00010999,2]
[380292496,1755639031971,-202.15989483,0.00010999,2]
[380292497,1755639031980,-10476.96647335,0.00011,2]
[380292499,1755639031989,-3885.56936956,0.00011,2]
[380292501,1755639032001,-86862.33222804,0.00011,2]
[380292504,1755639032067,-1076.31450404,0.00011,2]
[380292505,1755639032079,-3224.45872893,0.00011,2]
[380292506,1755639032102,-47048.51960531,0.00011,2]
[380292507,1755639032114,-10386.26766986,0.00011,2]
[380292508,1755639032126,-25624.04526385,0.00011,2]
[380292509,1755639032138,-589.92984,0.00011,2]
[380292510,1755639032176,-9500.70554288,0.00011,2]
[380292511,1755639032187,-15703.80358223,0.00011,2]
[380292513,1755639037437,-690.62156622,0.00011,2]
[380292514,1755639037496,-500.0,0.00011,2]
[380292515,1755639037553,-8265216.83278999,0.00011,2]
[380292516,1755639037612,-573.17705831,0.00011,2]
[380292517,1755639037628,-680.52853606,0.00011,2]
[380292594,1755639040199,-844.34473846,0.00011,2]
[380292596,1755639040210,-927.740244,0.00011,2]
[380292598,1755639040221,-227520.0,0.00011,2]
[380292619,1755639040412,-1837.56611134,0.00011,2]
[380292628,1755639040486,-1021.095,0.00011,2]
[380292630,1755639040497,-991.32286111,0.00011,2]
[380292681,1755639042643,-45808.36416568,0.00011,2]
[380292682,1755639042703,-393.38047036,0.00011,2]
[380292718,1755639045489,-7710.16369758,0.00011,2]
[380292719,1755639045500,-4633.89480678,0.00011,2]
[380292720,1755639045618,-2279.55,0.00011,2]
[380292756,1755640231764,-150.0,9.888e-05,2]
[380292757,1755640231774,-150.0,9.888e-05,2]
[380292758,1755640231783,-150.0,9.888e-05,2]
[380292759,1755640231792,-72.76134297,9.888e-05,2]
[380292760,1755640231852,-77.23865703,9.888e-05,2]
[380292761,1755640231861,-150.0,9.888e-05,2]
[380292762,1755640231873,-150.0,9.888e-05,2]
[380292763,1755640231884,-150.0,9.888e-05,2]
[380292764,1755640231893,-150.0,9.888e-05,2]
[380292765,1755640231902,-150.0,9.888e-05,2]
[380292766,1755640231912,-150.0,9.888e-05,2]
[380292767,1755640231922,-150.0,9.888e-05,2]
[380292768,1755640231931,-150.0,9.888e-05,2]
[380292769,1755640231941,-150.0,9.888e-05,2]
[380292770,1755640231950,-13598.0,0.0001,2]
[380292771,1755640231960,-500.0,0.00010006,2]
[380292772,1755640231969,-150.0,0.00010162,2]
[380292773,1755640231978,-150.0,0.00010162,2]
[380292774,1755640231988,-4699.24918945,0.000102,3]
[380292775,1755640231999,-813.75081055,0.000102,3]
[380292776,1755640232009,-58.56918945,0.00010254,2]
[380292777,1755640232052,-91.43081055,0.00010254,2]
[380292778,1755640232061,-150.0,0.00010254,2]
[380292779,1755640232070,-150.0,0.00010254,2]
[380292780,1755640232080,-150.0,0.00010254,2]
[380292781,1755640232089,-170.0,0.00010302,7]
[380292782,1755640232099,-150.0,0.00010437,2]
[380292783,1755640232109,-150.0,0.00010437,2]
[380292785,1755640232118,-150.0,0.00010437,2]
[380292787,1755640232127,-150.0,0.00010437,2]
[380292789,1755640232137,-150.0,0.00010437,2]
[380292792,1755640232147,-150.0,0.00010437,2]
[380292794,1755640232156,-1604.36806482,0.000105,5]
[380292797,1755640232175,-609.5259571,0.000105,5]
[380292799,1755640232191,-3299.10597808,0.000105,5]
[380292801,1755640232200,-630.03,0.00010505,2]
[380292804,1755640232210,-302.69,0.00010505,2]
[380292806,1755640232220,-2269.31,0.00010599,2]
[380292808,1755640232229,-207.64199087,0.00010599,2]
[380292810,1755640232245,-1444.14800913,0.00010599,2]
[380292812,1755640232254,-215.4,0.00010611,2]
[380292814,1755640232263,-150.99,0.00010611,2]
[380292816,1755640232273,-883.85,0.00010611,2]
[380292818,1755640232282,-150.0,0.00010619,2]
[380292821,1755640232293,-150.0,0.0001062,2]
[380292823,1755640232302,-150.0,0.0001062,2]
[380292825,1755640232312,-150.0,0.0001062,2]
[380292827,1755640232321,-150.0,0.0001062,2]
[380292829,1755640232330,-150.0,0.00010712,2]
[380292831,1755640232339,-150.0,0.00010712,2]
[380292833,1755640232349,-1000.0,0.0001081,2]
[380292835,1755640232358,-200.0,0.00010866,2]
[380292837,1755640232368,-300.0,0.00010876,2]
[380292839,1755640232377,-267.89701356,0.000109,2]
[380292841,1755640232386,-2032.73408274,0.000109,2]
[380292843,1755640232396,-215.53703108,0.000109,2]
[380292845,1755640232405,-545.44386349,0.00010959,2]
[380292849,1755640232435,-1347.55613651,0.00010959,2]
[380292851,1755640232444,-681.0,0.00010959,2]
[380292853,1755640232453,-500.32939212,0.00010973,2]
[380292855,1755640232462,-500.0,0.00010973,2]
[380292857,1755640232472,-500.0,0.00010973,2]
[380292859,1755640232481,-399.75409424,0.00010973,2]
[380292861,1755640232490,-500.0,0.00010973,2]
[380292863,1755640232499,-500.0,0.00010973,2]
[380292865,1755640232508,-500.0,0.00010973,2]
[380292867,1755640232517,-500.0,0.00010973,2]
[380292869,1755640232527,-500.0,0.00010973,2]
[380292871,1755640232536,-500.0,0.00010973,2]
[380292873,1755640232545,-500.0,0.00010973,2]
[380292875,1755640232555,-500.0,0.00010973,2]
[380292877,1755640232564,-500.0,0.00010973,2]
[380292879,1755640232573,-408.73699543,0.00010973,2]
[380293037,1755640237680,-307.95600565,0.000109,2]
[380293038,1755640237689,-91.69622695,0.00010973,2]
[380293039,1755640237698,-23.31865112,0.00010973,2]
[380293040,1755640237798,-476.68134888,0.00010973,2]
[380293041,1755640237807,-500.0,0.00010973,2]
[380293042,1755640237816,-500.0,0.00010973,2]
[380293043,1755640237825,-500.0,0.00010973,2]
[380293044,1755640237835,-871.902753,0.00010985,2]
[380293045,1755640237844,-150.0,0.00010986,2]
[380293046,1755640237853,-150.0,0.00010986,2]
[380293047,1755640237862,-150.00000001,0.00010986,2]
[380293048,1755640237872,-150.00000001,0.00010986,2]
[380293049,1755640237884,-272.6605101,0.00010986,2]
[380293050,1755640237893,-249.46423961,0.00010986,2]
[380293051,1755640237902,-150.0,0.00010986,2]
[380293052,1755640237911,-150.0,0.00010986,2]
[380293053,1755640237921,-150.00000001,0.00010986,2]
[380293054,1755640237930,-150.0,0.00010986,2]
[380293055,1755640237939,-150.0,0.00010986,2]
[380293056,1755640237950,-300.0,0.00010993,2]
[380293057,1755640237959,-150.0,0.00010993,2]
[380293058,1755640237968,-500.0,0.00010993,2]
[380293059,1755640237977,-500.0,0.00010993,2]
[380293060,1755640237987,-151.0,0.00010993,2]
[380293061,1755640237996,-151.0,0.00010993,2]
[380293062,1755640238004,-151.0,0.00010993,2]
[380293063,1755640238013,-151.0,0.00010993,2]
[380293064,1755640238023,-151.0,0.00010993,2]
[380293065,1755640238031,-151.0,0.00010993,2]
[380293066,1755640238040,-151.0,0.00010993,2]
[380293067,1755640238049,-151.0,0.00010993,2]
[380293068,1755640238059,-151.0,0.00010993,2]
[380293069,1755640238067,-151.0,0.00010993,2]
[380293070,1755640238076,-151.0,0.00010993,2]
[380293071,1755640238085,-500.0,0.00010999,2]
[380293072,1755640238095,-500.0,0.00010999,2]
[380293074,1755640238104,-500.0,0.00010999,2]
[380293075,1755640238113,-227.9294378,0.00010999,2]
[380293076,1755640238129,-272.0705622,0.00010999,2]
[380293077,1755640238138,-362.5294378,0.00010999,2]
[380293078,1755640238150,-137.4705622,0.00010999,2]
[380293079,1755640238159,-500.0,0.00010999,2]
[380293080,1755640238169,-500.0,0.00010999,2]
[380293081,1755640238178,-155.0,0.00010999,2]
[380293082,1755640238187,-150.0,0.00010999,2]
[380293083,1755640238197,-150.0,0.00010999,2]
[380293084,1755640238206,-150.0,0.00010999,2]
[380293085,1755640238215,-150.0,0.00010999,2]
[380293086,1755640238224,-150.0,0.00010999,2]
[380293087,1755640238233,-150.0,0.00010999,2]
[380293088,1755640238242,-150.0,0.00010999,2]
[380293089,1755640238252,-150.0,0.00010999,2]
[380293090,1755640238261,-150.0,0.00010999,2]
[380293091,1755640238271,-202.4,0.00011,2]
[380293092,1755640238280,-203.3,0.00011,2]
[380293093,1755640238290,-200.52,0.00011,2]
[380293094,1755640238299,-14.3094378,0.00011,2]
[380293095,1755640238325,-5224.17379888,0.00011,2]
[380293096,1755640238335,-3736813.68059035,0.00011,2]
[380293097,1755640238344,-4389952.82646741,0.00011,2]
[380293098,1755640238353,-133226.15193335,0.00011,2]
[380293099,1755640238364,-1300.0,0.00011,2]
[380293104,1755640239672,-4452.829743,0.00011,2]
[380293105,1755640239683,-682.8,0.00011,2]
[380293106,1755640239930,-3861.08090694,0.00011,2]
[380293113,1755640242699,-11559.63828942,0.00011,2]
[380293114,1755640242763,-50900.90687015,0.00011,2]
[380293117,1755640246362,-3101.56521001,0.000105,5]
[380293118,1755640246475,-2411.43478999,0.000105,5]
[380293119,1755640246485,-35201.73086017,0.00011,2]
[380293120,1755640246594,-983.99102547,0.00011,2]
[380293121,1755640246605,-4270.80162864,0.00011,2]
[380293150,1755641432018,-250.0,9.907e-05,2]
[380293151,1755641432028,-1000.0,0.00010196,2]
[380293152,1755641432037,-170.0,0.00010227,7]
[380293153,1755641432046,-385.89619983,0.00010334,2]
[380293154,1755641432055,-315.01,0.00010337,2]
[380293155,1755641432064,-617.66,0.00010348,2]
[380293156,1755641432073,-216.12,0.00010387,2]
[380293157,1755641432083,-800.0,0.000108,3]
[380293158,1755641432092,-1200.0,0.00010899,2]
[380293159,1755641432102,-300.0,0.00010899,2]
[380293160,1755641432112,-342.62,0.000109,2]
[380293161,1755641432121,-229.62601158,0.000109,2]
[380293162,1755641432132,-1600.0,0.000109,3]
[380293163,1755641432141,-9999.99,0.000109,2]
[380293164,1755641432150,-150.99,0.000109,2]
[380293165,1755641432159,-150.99,0.000109,2]
[380293166,1755641432168,-5963.87104144,0.0001091,2]
[380293167,1755641432178,-775.3,0.0001091,2]
[380293168,1755641432187,-150.0,0.00010972,2]
[380293169,1755641432196,-500.0,0.00010973,2]
[380293170,1755641432206,-200.0,0.00010989,2]
[380293171,1755641432215,-200.0,0.00010993,2]
[380293172,1755641432224,-151.0,0.00010993,2]
[380293173,1755641432234,-151.0,0.00010993,2]
[380293174,1755641432243,-151.0,0.00010993,2]
[380293175,1755641432252,-261.11625704,0.00010993,2]
[380293177,1755641432262,-15829.76,0.00011,2]
[380293179,1755641432271,-21602.54775021,0.00011,2]
[380293185,1755641432321,-513.3852862,0.00011,2]
[380293189,1755641432350,-23323.12786969,0.00011,2]
[380293190,1755641432360,-150.0,0.00011,2]
[380293192,1755641432369,-150.0,0.00011,2]
[380293193,1755641432379,-150.0,0.00011,2]
[380293194,1755641432387,-289.657413,0.00011,2]
[380293195,1755641432397,-4319.72025,0.00011,2]
[380293196,1755641432406,-1255.76995594,0.00011,2]
[380293198,1755641432415,-200.0,0.00011,2]
[380293199,1755641432425,-26923.07451137,0.00011,2]
[380293220,1755641437950,-964295.25075462,0.00011,2]
[380293222,1755641437960,-191922.3647386,0.00011,2]
[380293224,1755641437969,-150.0,0.00011,2]
[380293225,1755641437978,-150.0,0.00011,2]
[380293226,1755641437987,-150.0,0.00011,2]
[380293227,1755641437996,-500.0,0.00011,2]
[380293228,1755641438005,-150.0,0.00011,2]
[380293229,1755641438014,-330.9240198,0.00011,2]
[380293230,1755641438023,-2096.90184,0.00011,2]
[380293231,1755641438032,-150.0,0.00011,2]
[380293232,1755641438040,-150.0,0.00011,2]
[380293233,1755641438049,-150.0,0.00011,2]
[380293234,1755641438058,-150.0,0.00011,2]
[380293235,1755641438067,-150.0,0.00011,2]
[380293236,1755641438076,-246.886668,0.00011,2]
[380293237,1755641438085,-1158.164826,0.00011,2]
[380293238,1755641438094,-196.052696,0.00011,2]
[380293239,1755641438104,-150.0,0.00011,2]
[380293240,1755641438112,-300.0,0.00011,2]
[380293241,1755641438121,-150.0,0.00011,2]
[380293242,1755641438130,-500.0,0.00011,2]
[380293243,1755641438139,-500.0,0.00011,2]
[380293244,1755641438148,-500.0,0.00011,2]
[380293245,1755641438157,-200.0,0.00011,2]
[380293246,1755641438166,-55872.84801977,0.00011099,2]
[380293247,1755641438175,-200.0,0.0001111,2]
[380293248,1755641438185,-750.8,0.000112,2]
[380293249,1755641438194,-852.89625997,0.00011212,2]
[380293250,1755641438204,-200.0,0.00011274,2]
[380293251,1755641438213,-150.0,0.00011274,2]
[380293252,1755641438222,-200.0,0.00011274,2]
[380293253,1755641438232,-150.0,0.00011274,2]
[380293254,1755641438241,-500.0,0.00011274,2]
[380293255,1755641438250,-150.0,0.00011274,2]
[380293256,1755641438261,-150.0,0.00011274,2]
[380293257,1755641438271,-150.0,0.00011274,2]
[380293258,1755641438281,-207.91791004,0.00011274,2]
[380293259,1755641438290,-300.0,0.00011274,2]
[380293260,1755641438301,-500.0,0.00011274,2]
[380293261,1755641438312,-500.0,0.00011274,2]
[380293263,1755641438322,-500.0,0.00011274,2]
[380293264,1755641438331,-151.0,0.00011379,2]
[380293266,1755641438340,-1219.0,0.00011451,2]
[380293268,1755641438349,-151.0,0.00011451,2]
[380293270,1755641438359,-1000.0,0.00011471,2]
[380293272,1755641438367,-169.9,0.00011507,2]
[380293274,1755641438376,-2751.0,0.00011507,2]
[380293276,1755641438385,-150.0,0.00011548,2]
[380293278,1755641438396,-500.0,0.00011548,2]
[380293280,1755641438405,-200.0,0.00011548,2]
[380293281,1755641438414,-255.0,0.00011548,2]
[380293283,1755641438424,-200.0,0.00011548,2]
[380293285,1755641438433,-300.0,0.00011548,2]
[380293287,1755641438443,-500.0,0.00011548,2]
[380293289,1755641438454,-601.57408413,0.00011548,2]
[380293291,1755641438463,-500.0,0.00011548,2]
[380293292,1755641438473,-10138.8249369,0.00011606,2]
[380293294,1755641438482,-55872.84801968,0.00011678,2]
[380293296,1755641438491,-963.8598711,0.00011686,2]
[380293298,1755641438500,-2262.2776319,0.00011742,2]
[380293300,1755641438510,-42823.6679801,0.00011792,2]
[380293302,1755641438519,-150.0,0.00011822,2]
[380293304,1755641438528,-500.0,0.00011822,2]
[380293305,1755641438537,-300.0,0.00011822,2]
[380293307,1755641438546,-431.57015915,0.00011822,2]
[380293309,1755641438556,-500.0,0.00011822,2]
[380293311,1755641438565,-215.0662074,0.0001184,2]
[380293313,1755641438574,-500.0,0.00011879,2]
[380293315,1755641438584,-2500.0,0.000119,4]
[380293317,1755641438593,-9555.2518945,0.00011968,2]
[380293319,1755641438602,-420.0,0.00011978,2]
[380293321,1755641438611,-1083.0,0.00011989,2]
[380293323,1755641438621,-255.0,0.00012014,2]
[380293325,1755641438630,-500.0,0.00012075,2]
[380293327,1755641438639,-197.63449272,0.00012096,2]
[380293329,1755641438648,-500.0,0.00012096,2]
[380293330,1755641438657,-244.37731544,0.00012096,2]
[380293332,1755641438666,-500.0,0.00012096,2]
[380293334,1755641438675,-3421.18,0.000121,7]
[380293336,1755641438684,-500.0,0.00012185,2]
[380293338,1755641438694,-3421.18,0.000123,7]
[380293340,1755641438703,-500.0,0.0001237,2]
[380293342,1755641438712,-439.0,0.0001237,2]
[380293344,1755641438721,-150.0,0.00012372,2]
[380293346,1755641438730,-178.768,0.00012372,2]
[380293348,1755641438739,-3371.0,0.00012372,2]
[380293350,1755641438749,-904.0,0.00012372,2]
[380293351,1755641438758,-1255.0,0.00012372,2]
[380293353,1755641438767,-2042.584,0.00012372,2]
[380293355,1755641438776,-1297.0,0.00012372,2]
[380293357,1755641438785,-672.91,0.00012372,2]
[380293359,1755641438794,-608.265,0.00012372,2]
[380293361,1755641438803,-4152.0,0.00012372,2]
[380293363,1755641438812,-21497.0,0.00012372,2]
[380293365,1755641438821,-1172.0,0.00012372,2]
[380293367,1755641438830,-894.0,0.00012372,2]
[380293370,1755641438850,-229.62601157,0.000124,2]
[380293373,1755641438867,-55872.84801968,0.00012455,2]
[380293375,1755641438883,-301.59104201,0.000125,2]
[380293378,1755641438899,-314.0,0.00012575,3]
[380293381,1755641438917,-3421.18,0.000126,7]
[380293383,1755641438931,-990.83,0.00012632,2]
[380293386,1755641438946,-500.0,0.00012644,2]
[380293388,1755641438963,-1000.0,0.00012745,2]
[380293391,1755641438979,-3421.18,0.000128,7]
[380293394,1755641438996,-3300.0,0.000129,4]
[380293396,1755641439013,-500.0,0.00012918,2]
[380293399,1755641439029,-246.886668,0.00012975,2]
[380293402,1755641439045,-165.452118,0.00012975,2]
[380293404,1755641439061,-196.052696,0.00012975,2]
[380293406,1755641439075,-2096.90185,0.00013,2]
[380293409,1755641439087,-433.0,0.00013155,2]
[380293412,1755641439106,-587.0,0.00013164,2]
[380293414,1755641439117,-500.0,0.00013192,2]
[380293416,1755641439130,-55872.84801968,0.00013233,2]
[380293419,1755641439147,-1756.0,0.00013233,2]
[380293421,1755641439159,-843.87140665,0.00013238,2]
[380293423,1755641439172,-212.02104404,0.00013238,2]
[380293427,1755641439197,-160.0,0.00013238,2]
[380293429,1755641439211,-458.43483364,0.00013238,2]
[380293432,1755641439225,-150.0,0.00013287,2]
[380293434,1755641439239,-788.60002085,0.00013287,2]
[380293436,1755641439253,-1005.07845795,0.00013287,2]
[380293439,1755641439267,-1221.55689504,0.00013288,2]
[380293441,1755641439281,-1438.03533214,0.00013288,2]
[380293444,1755641439295,-1654.51376924,0.00013289,2]
[380293446,1755641439310,-1870.99220633,0.00013289,2]
[380293449,1755641439324,-2087.47064343,0.00013289,2]
[380293451,1755641439338,-2303.94908052,0.0001329,2]
[380293454,1755641439352,-2520.42751762,0.0001329,2]
[380293456,1755641439367,-3421.18,0.000133,7]
[380293458,1755641439380,-293047.07,0.000133,2]
[380293461,1755641439395,-300.0,0.00013419,2]
[380293462,1755641439410,-169.9,0.00013424,2]
[380293463,1755641439423,-500.0,0.00013466,2]
[380293464,1755641439438,-158.0,0.000136,2]
[380293465,1755641439455,-150.0,0.00013686,2]
[380293466,1755641439470,-788.60002085,0.00013687,2]
[380293467,1755641439484,-1005.07845795,0.00013687,2]
[380293468,1755641439498,-1221.55689504,0.00013688,2]
[380293469,1755641439513,-1438.03533214,0.00013688,2]
[380293470,1755641439528,-1654.51376924,0.00013688,2]
[380293471,1755641439543,-1870.99220633,0.00013689,2]
[380293472,1755641439557,-2087.47064343,0.00013689,2]
[380293473,1755641439573,-2303.94908052,0.0001369,2]
[380293475,1755641439588,-2520.42751762,0.0001369,2]
[380293478,1755641439603,-150.0,0.00013698,2]
[380293480,1755641439617,-200.0,0.00013699,2]
[380293483,1755641439632,-200.0,0.00013699,2]
[380293485,1755641439646,-200.0,0.00013699,2]
[380293488,1755641439660,-200.0,0.00013699,2]
[380293490,1755641439674,-200.0,0.00013699,2]
[380293493,1755641439688,-200.0,0.00013699,2]
[380293495,1755641439703,-200.0,0.00013699,2]
[380293498,1755641439717,-157.147186,0.00013699,2]
[380293500,1755641439731,-5526.4,0.00013699,2]
[380293503,1755641439746,-1000.0,0.00013699,2]
[380293506,1755641439760,-191.30098336,0.00013699,2]
[380293508,1755641439774,-154.0,0.00013699,2]
[380293511,1755641439788,-154.0,0.00013699,2]
[380293513,1755641439802,-154.0,0.00013699,2]
[380293516,1755641439816,-154.0,0.00013699,2]
[380293519,1755641439831,-154.0,0.00013699,2]
[380293522,1755641439845,-154.0,0.00013699,2]
[380293524,1755641439859,-154.0,0.00013699,2]
[380293527,1755641439873,-154.0,0.00013699,2]
[380293530,1755641439887,-154.0,0.00013699,2]
[380293533,1755641439902,-154.0,0.00013699,2]
[380293536,1755641439916,-154.0,0.00013699,2]
[380293538,1755641439930,-154.0,0.00013699,2]
[380293541,1755641439944,-154.0,0.00013699,2]
[380293543,1755641439957,-268.36562121,0.00013699,2]
[380293546,1755641439971,-268.36562121,0.00013699,2]
[380293548,1755641439984,-154.0,0.00013699,2]
[380293551,1755641439997,-154.0,0.00013699,2]
[380293553,1755641440011,-154.0,0.00013699,2]
[380293556,1755641440024,-16109.05,0.00013699,2]
[380293558,1755641440037,-21491.77,0.000137,2]
[380293561,1755641440051,-21491.77,0.000137,2]
[380293563,1755641440065,-637.0851422,0.0001374,2]
[380293566,1755641440078,-402.54843181,0.0001387,7]
[380293568,1755641440091,-402.54843181,0.0001387,7]
[380293570,1755641440105,-229.62601157,0.000139,2]
[380293573,1755641440118,-55872.84801968,0.00014011,2]
[380293575,1755641440131,-136124.77446792,0.00014011,2]
[380293578,1755641440145,-1000.0,0.0001402,2]
[380293580,1755641440158,-1425.0,0.00014203,2]
[380293583,1755641440171,-990.83,0.00014211,2]
[380293585,1755641440185,-15829.76,0.000143,2]
[380293588,1755641440198,-971.15854369,0.0001431,2]
[380293590,1755641440211,-5526.4,0.00014384,2]
[380293593,1755641440225,-151.0,0.00014389,2]
[380293595,1755641440238,-736.0,0.00014406,2]
[380293597,1755641440251,-151.0,0.00014427,2]
[380293600,1755641440265,-151.0,0.00014442,2]
[380293602,1755641440278,-860.56205838,0.00014442,2]
[380293605,1755641440291,-151.0,0.00014447,2]
[380293607,1755641440305,-823.0,0.00014467,2]
[380293610,1755641440319,-315.01,0.00014472,2]
[380293612,1755641440332,-293047.07,0.000145,2]
[380293615,1755641440345,-2500.0,0.00014695,3]
[380293617,1755641440360,-1425.0,0.00014702,2]
[380293620,1755641440373,-2500.0,0.00014704,3]
[380293622,1755641440387,-2500.0,0.00014713,3]
[380293625,1755641440400,-2500.0,0.00014722,3]
[380293627,1755641440414,-2500.0,0.0001473,3]
[380293630,1755641440427,-4000.0,0.00014748,2]
[380293632,1755641440440,-172.0,0.00014767,3]
[380293635,1755641440454,-5800.0,0.00014778,2]
[380293637,1755641440468,-5800.0,0.00014786,2]
[380293640,1755641440483,-200.94901356,0.00014787,2]
[380293642,1755641440497,-55872.84801968,0.00014788,2]
[380293645,1755641440511,-136124.77446792,0.00014788,2]
[380293647,1755641440524,-5800.0,0.00014795,2]
[380293650,1755641440538,-2746.50441098,0.00014795,2]
[380293652,1755641440552,-160.0,0.0001481,2]
[380293654,1755641440565,-277.35679052,0.0001481,2]
[380293657,1755641440581,-300.0,0.0001481,2]
[380293660,1755641440595,-4200.0,0.000149,5]
[380293662,1755641440609,-1425.0,0.0001491,2]
[380293664,1755641440623,-246.886668,0.0001495,2]
[380293667,1755641440636,-165.452118,0.0001495,2]
[380293669,1755641440650,-196.052696,0.0001495,2]
[380293672,1755641440663,-200.0,0.00014961,2]
[380293674,1755641440677,-250.0,0.00015,2]
[380293677,1755641440691,-2096.90185,0.00015,2]
[380293679,1755641440704,-1425.0,0.00015067,2]
[380293682,1755641440717,-300.0,0.00015068,2]
[380293684,1755641440731,-5526.4,0.00015068,2]
[380293687,1755641440745,-1425.0,0.00015123,2]
[380293689,1755641440759,-168.75726635,0.00015132,9]
[380293692,1755641440772,-151.0,0.00015196,2]
[380293694,1755641440785,-151.0,0.00015196,2]
[380293696,1755641440799,-151.0,0.00015196,2]
[380293699,1755641440813,-151.0,0.00015196,2]
[380293701,1755641440827,-151.0,0.00015196,2]
[380293704,1755641440841,-151.0,0.00015196,2]
[380293706,1755641440856,-151.0,0.00015196,2]
[380293709,1755641440869,-1000.0,0.00015294,2]
[380293711,1755641440883,-150.0,0.000153,2]
[380293714,1755641440896,-169.9,0.00015342,2]
[380293716,1755641440909,-150.0,0.00015372,2]
[380293719,1755641440922,-198.869,0.00015372,2]
[380293721,1755641440936,-2029.0,0.00015372,2]
[380293724,1755641440949,-4152.0,0.00015372,2]
[380293726,1755641440962,-21497.0,0.00015372,2]
[380293728,1755641440975,-1172.0,0.00015372,2]
[380293731,1755641440988,-894.0,0.00015372,2]
[380293733,1755641441002,-497.71378788,0.000154,2]